[Event "*** Titled Tuesday Blitz"]
[Site "Chess.com"]
[Date "2020.10.27"]
[Round "11"]
[White "SantoBlue"]
[Black "MomchilPetkov"]
[Result "1-0"]
[WhiteElo "2832"]
[BlackElo "2642"]
[TimeControl "180+1"]
[EndTime "12:02:47 PDT"]
[Termination "SantoBlue won by resignation"]

1. e4 {[%clk 0:03:00.9]} 1... g6 {[%clk 0:02:58.9]} 2. d4 {[%clk 0:03:00.4]}
2... Bg7 {[%clk 0:02:58.8]} 3. Nf3 {[%clk 0:02:59.9]} 3... c6 {[%clk 0:02:58.7]}
4. h3 {[%clk 0:02:57.9]} 4... d5 {[%clk 0:02:58.3]} 5. e5 {[%clk 0:02:58.5]}
5... Nh6 {[%clk 0:02:44.8]} 6. Be2 {[%clk 0:02:57.7]} 6... f6 {[%clk 0:02:43.6]}
7. O-O {[%clk 0:02:56.7]} 7... Nf7 {[%clk 0:02:43.5]} 8. exf6 {[%clk 0:02:50.4]}
8... exf6 {[%clk 0:02:42]} 9. c4 {[%clk 0:02:49.7]} 9... O-O {[%clk 0:02:31.4]}
10. Nc3 {[%clk 0:02:49.7]} 10... Be6 {[%clk 0:02:28.4]} 11. cxd5 {[%clk
0:02:49.2]} 11... Bxd5 {[%clk 0:02:25.8]} 12. Nxd5 {[%clk 0:02:48.9]} 12... Qxd5
{[%clk 0:02:26.7]} 13. Bf4 {[%clk 0:02:43.2]} 13... Nd7 {[%clk 0:02:18.8]} 14.
Rc1 {[%clk 0:02:43.1]} 14... Nb6 {[%clk 0:02:19.2]} 15. a4 {[%clk 0:02:40]}
15... a5 {[%clk 0:02:17.9]} 16. Bc7 {[%clk 0:02:36.2]} 16... Nc8 {[%clk
0:02:05.7]} 17. Bc4 {[%clk 0:02:36]} 17... Qd7 {[%clk 0:02:06.2]} 18. Bg3 {[%clk
0:02:34.8]} 18... Nb6 {[%clk 0:02:05.3]} 19. Ba2 {[%clk 0:02:34.5]} 19... Nd5
{[%clk 0:02:05.8]} 20. Nd2 {[%clk 0:02:33.9]} 20... f5 {[%clk 0:02:03.5]} 21.
Nc4 {[%clk 0:02:32.9]} 21... f4 {[%clk 0:02:02.7]} 22. Bh2 {[%clk 0:02:32.8]}
22... g5 {[%clk 0:01:59.9]} 23. Re1 {[%clk 0:02:31.2]} 23... Rfe8 {[%clk
0:01:49.8]} 24. Qh5 {[%clk 0:02:30.8]} 24... Qf5 {[%clk 0:01:33.1]} 25. Bb1
{[%clk 0:02:27.9]} 25... Qf6 {[%clk 0:01:15.7]} 26. Bxh7+ {[%clk 0:02:25.4]}
26... Kf8 {[%clk 0:01:16.1]} 27. Bg6 {[%clk 0:02:24.9]} 27... Rad8 {[%clk
0:00:52.8]} 28. Rxe8+ {[%clk 0:02:20.4]} 28... Kxe8 {[%clk 0:00:46.9]} 29. Ne5
{[%clk 0:02:17.9]} 1-0

[Event "*** Titled Tuesday Blitz"]
[Site "Chess.com"]
[Date "2020.10.27"]
[Round "11"]
[White "PawnEatingZombie"]
[Black "TheSodabread"]
[Result "0-1"]
[WhiteElo "2144"]
[BlackElo "1944"]
[TimeControl "180+1"]
[EndTime "12:02:56 PDT"]
[Termination "TheSodabread won by resignation"]

1. d4 {[%clk 0:03:00.9]} 1... Nf6 {[%clk 0:02:58.1]} 2. c4 {[%clk 0:03:00.7]}
2... e5 {[%clk 0:02:58.5]} 3. dxe5 {[%clk 0:03:00.1]} 3... Ne4 {[%clk
0:02:59.2]} 4. a3 {[%clk 0:02:57]} 4... b6 {[%clk 0:02:57.9]} 5. Qc2 {[%clk
0:02:56.8]} 5... Bb7 {[%clk 0:02:57.6]} 6. Nf3 {[%clk 0:02:57.1]} 6... Bc5
{[%clk 0:02:52.1]} 7. e3 {[%clk 0:02:55]} 7... O-O {[%clk 0:02:41.1]} 8. Nc3
{[%clk 0:02:54.3]} 8... Nxc3 {[%clk 0:02:40.7]} 9. Qxc3 {[%clk 0:02:53.2]} 9...
Nc6 {[%clk 0:02:40.9]} 10. b4 {[%clk 0:02:42.3]} 10... Be7 {[%clk 0:02:38.8]}
11. Bb2 {[%clk 0:02:42.1]} 11... a5 {[%clk 0:02:37.7]} 12. b5 {[%clk 0:02:32.4]}
12... Nb8 {[%clk 0:02:35.4]} 13. Be2 {[%clk 0:02:26.1]} 13... f6 {[%clk
0:02:29.2]} 14. O-O {[%clk 0:02:17.4]} 14... fxe5 {[%clk 0:02:27.3]} 15. Nxe5
{[%clk 0:02:16.6]} 15... Bf6 {[%clk 0:02:26.4]} 16. c5 {[%clk 0:02:07.9]} 16...
bxc5 {[%clk 0:02:25]} 17. Qxc5 {[%clk 0:02:04.9]} 17... d6 {[%clk 0:02:25.1]}
18. Qc4+ {[%clk 0:02:03.7]} 18... Kh8 {[%clk 0:02:20.3]} 19. Nd3 {[%clk
0:02:00.1]} 19... Bxb2 {[%clk 0:02:16.8]} 20. Nxb2 {[%clk 0:01:59.7]} 20... Qg5
{[%clk 0:02:17.7]} 21. Qg4 {[%clk 0:01:48.4]} 21... Qf6 {[%clk 0:02:15.4]} 22.
Nc4 {[%clk 0:01:39.4]} 22... Bc8 {[%clk 0:02:11.1]} 23. Qg3 {[%clk 0:01:36.8]}
23... Bb7 {[%clk 0:02:10.8]} 24. a4 {[%clk 0:01:35.1]} 24... Nd7 {[%clk
0:02:11]} 25. Rac1 {[%clk 0:01:25.6]} 25... Qh6 {[%clk 0:02:10.2]} 26. Nd2
{[%clk 0:01:14.9]} 26... Rf6 {[%clk 0:02:00.1]} 27. Rxc7 {[%clk 0:01:07.1]}
27... Rg6 {[%clk 0:01:59.2]} 28. Rxb7 {[%clk 0:01:07.2]} 28... Rxg3 {[%clk
0:01:59]} 29. hxg3 {[%clk 0:01:08.1]} 29... Nc5 {[%clk 0:01:56.6]} 30. Rc1
{[%clk 0:00:58.8]} 30... Nxb7 {[%clk 0:01:52.9]} 0-1

[Event "*** Titled Tuesday Blitz"]
[Site "Chess.com"]
[Date "2020.10.27"]
[Round "11"]
[White "MashaFromRussia"]
[Black "Morshynska"]
[Result "0-1"]
[WhiteElo "2344"]
[BlackElo "2227"]
[TimeControl "180+1"]
[EndTime "12:03:08 PDT"]
[Termination "Morshynska won by resignation"]

1. d4 {[%clk 0:03:00.9]} 1... d5 {[%clk 0:02:59.8]} 2. c4 {[%clk 0:03:01.4]}
2... c6 {[%clk 0:03:00.2]} 3. Nf3 {[%clk 0:03:01.5]} 3... Nf6 {[%clk 0:03:00.3]}
4. Nc3 {[%clk 0:03:02]} 4... e6 {[%clk 0:02:58.5]} 5. g3 {[%clk 0:03:02.3]} 5...
Nbd7 {[%clk 0:02:56.8]} 6. Bg2 {[%clk 0:03:02.5]} 6... Bd6 {[%clk 0:02:54.6]} 7.
O-O {[%clk 0:03:00.9]} 7... O-O {[%clk 0:02:54.8]} 8. b3 {[%clk 0:02:59.3]} 8...
Ne4 {[%clk 0:02:51.1]} 9. Qc2 {[%clk 0:02:58.5]} 9... f5 {[%clk 0:02:50.7]} 10.
Nxe4 {[%clk 0:02:56.9]} 10... fxe4 {[%clk 0:02:51.6]} 11. Ng5 {[%clk 0:02:56.6]}
11... Nf6 {[%clk 0:02:43.7]} 12. f3 {[%clk 0:02:56.9]} 12... exf3 {[%clk
0:02:35.2]} 13. exf3 {[%clk 0:02:57.8]} 13... e5 {[%clk 0:02:22.6]} 14. Bb2
{[%clk 0:02:50.9]} 14... exd4 {[%clk 0:01:54.8]} 15. Bxd4 {[%clk 0:02:51.8]}
15... g6 {[%clk 0:01:51.3]} 16. Rad1 {[%clk 0:02:40.2]} 16... Bf5 {[%clk
0:01:46]} 17. Qc3 {[%clk 0:02:34.7]} 17... Nd7 {[%clk 0:01:21.4]} 18. Bg7 {[%clk
0:02:27.5]} 18... Qxg5 {[%clk 0:01:15.4]} 19. Bxf8 {[%clk 0:02:25.7]} 19... Bxf8
{[%clk 0:01:01.6]} 20. cxd5 {[%clk 0:02:26]} 20... cxd5 {[%clk 0:01:01.1]} 21.
f4 {[%clk 0:02:25.6]} 21... Qf6 {[%clk 0:00:51.1]} 22. Bxd5+ {[%clk 0:02:25.5]}
22... Kh8 {[%clk 0:00:44.8]} 23. Qc7 {[%clk 0:02:20.1]} 23... Qb6+ {[%clk
0:00:40]} 24. Qxb6 {[%clk 0:02:17]} 24... axb6 {[%clk 0:00:39.3]} 25. Bxb7
{[%clk 0:02:09.2]} 25... Rxa2 {[%clk 0:00:36.1]} 26. Bc8 {[%clk 0:02:09.5]}
26... Bc5+ {[%clk 0:00:29.1]} 0-1

[Event "*** Titled Tuesday Blitz"]
[Site "Chess.com"]
[Date "2020.10.27"]
[Round "11"]
[White "AIROPITO7"]
[Black "fireheart92"]
[Result "0-1"]
[WhiteElo "2603"]
[BlackElo "2835"]
[TimeControl "180+1"]
[EndTime "12:03:11 PDT"]
[Termination "fireheart92 won by resignation"]

1. e4 {[%clk 0:03:00.9]} 1... c5 {[%clk 0:02:58.7]} 2. Nf3 {[%clk 0:03:00.7]}
2... d6 {[%clk 0:02:59]} 3. Bc4 {[%clk 0:02:59.2]} 3... Nf6 {[%clk 0:02:58.6]}
4. e5 {[%clk 0:02:59.4]} 4... dxe5 {[%clk 0:02:57.4]} 5. Nxe5 {[%clk 0:03:00.3]}
5... e6 {[%clk 0:02:57.9]} 6. Qe2 {[%clk 0:03:00.3]} 6... Bd6 {[%clk 0:02:55.2]}
7. b3 {[%clk 0:02:59.7]} 7... O-O {[%clk 0:02:51.3]} 8. Bb2 {[%clk 0:02:58.9]}
8... Qc7 {[%clk 0:02:49]} 9. O-O {[%clk 0:02:55.9]} 9... a6 {[%clk 0:02:49]} 10.
a4 {[%clk 0:02:55.6]} 10... b6 {[%clk 0:02:49.4]} 11. f4 {[%clk 0:02:50.2]}
11... Bb7 {[%clk 0:02:49.4]} 12. Bd3 {[%clk 0:02:49.2]} 12... Nd5 {[%clk
0:02:28.5]} 13. g3 {[%clk 0:02:43.6]} 13... Nb4 {[%clk 0:02:25.8]} 14. Na3
{[%clk 0:02:14.9]} 14... Nxd3 {[%clk 0:02:24]} 15. cxd3 {[%clk 0:02:07.2]} 15...
Nc6 {[%clk 0:02:07.7]} 16. Nac4 {[%clk 0:02:04.1]} 16... Rad8 {[%clk 0:02:06]}
17. Nxd6 {[%clk 0:02:01.4]} 17... Rxd6 {[%clk 0:02:05.3]} 18. Qg4 {[%clk
0:01:56.7]} 18... f6 {[%clk 0:01:45.9]} 19. Nc4 {[%clk 0:01:56.6]} 19... Rxd3
{[%clk 0:01:44.9]} 20. Qxe6+ {[%clk 0:01:54.8]} 20... Kh8 {[%clk 0:01:43.4]} 21.
Rae1 {[%clk 0:01:51.7]} 21... b5 {[%clk 0:01:39.9]} 22. axb5 {[%clk 0:01:19.4]}
22... axb5 {[%clk 0:01:40.8]} 23. Na3 {[%clk 0:01:19.8]} 23... Rxd2 {[%clk
0:01:35.4]} 24. Bc3 {[%clk 0:01:02.4]} 24... Rg2+ {[%clk 0:01:31]} 25. Kxg2
{[%clk 0:01:00.4]} 25... Nd4+ {[%clk 0:01:30.5]} 26. Kh3 {[%clk 0:01:01.1]} 0-1

[Event "*** Titled Tuesday Blitz"]
[Site "Chess.com"]
[Date "2020.10.27"]
[Round "11"]
[White "Borsuk_Konstantin"]
[Black "anon102030"]
[Result "1-0"]
[WhiteElo "2590"]
[BlackElo "2725"]
[TimeControl "180+1"]
[EndTime "12:03:21 PDT"]
[Termination "Borsuk_Konstantin won by resignation"]

1. d4 {[%clk 0:03:00.9]} 1... Nf6 {[%clk 0:02:55.3]} 2. c4 {[%clk 0:03:01.4]}
2... e5 {[%clk 0:02:55.2]} 3. d5 {[%clk 0:02:59.3]} 3... Bc5 {[%clk 0:02:53.8]}
4. e3 {[%clk 0:02:59.5]} 4... d6 {[%clk 0:02:53.6]} 5. a3 {[%clk 0:02:59]} 5...
a5 {[%clk 0:02:53.3]} 6. Nc3 {[%clk 0:02:59.3]} 6... O-O {[%clk 0:02:53]} 7. h3
{[%clk 0:02:50.2]} 7... Ne8 {[%clk 0:02:49.5]} 8. Qc2 {[%clk 0:02:47.5]} 8... f5
{[%clk 0:02:49.3]} 9. Bd2 {[%clk 0:02:48.1]} 9... Nf6 {[%clk 0:02:47.3]} 10.
O-O-O {[%clk 0:02:45]} 10... e4 {[%clk 0:02:41.6]} 11. f4 {[%clk 0:02:41.5]}
11... exf3 {[%clk 0:02:40.3]} 12. gxf3 {[%clk 0:02:40.7]} 12... Qe7 {[%clk
0:02:39.6]} 13. Re1 {[%clk 0:02:39.8]} 13... Nh5 {[%clk 0:02:36.3]} 14. Bd3
{[%clk 0:02:37]} 14... Na6 {[%clk 0:02:21.8]} 15. Kb1 {[%clk 0:02:34.1]} 15...
Bd7 {[%clk 0:02:21.2]} 16. Nge2 {[%clk 0:02:23.5]} 16... Bb6 {[%clk 0:02:03.1]}
17. Nd4 {[%clk 0:02:20.1]} 17... g6 {[%clk 0:01:57.1]} 18. Rhg1 {[%clk
0:02:13.4]} 18... Kh8 {[%clk 0:01:57]} 19. Nce2 {[%clk 0:01:29.6]} 19... Nc5
{[%clk 0:01:48.7]} 20. Bc3 {[%clk 0:01:28.8]} 20... Ng7 {[%clk 0:01:39.3]} 21.
Nf4 {[%clk 0:01:25.8]} 21... Rf7 {[%clk 0:01:20.4]} 22. Rxg6 {[%clk 0:01:22]}
1-0

[Event "*** Titled Tuesday Blitz"]
[Site "Chess.com"]
[Date "2020.10.27"]
[Round "11"]
[White "Marina_Chess_Rus"]
[Black "TotsukaBlade"]
[Result "0-1"]
[WhiteElo "2266"]
[BlackElo "2415"]
[TimeControl "180+1"]
[EndTime "12:03:42 PDT"]
[Termination "TotsukaBlade won on time"]

1. d4 {[%clk 0:03:00.9]} 1... d5 {[%clk 0:02:58.3]} 2. Nf3 {[%clk 0:03:00.3]}
2... Nf6 {[%clk 0:02:57.8]} 3. c4 {[%clk 0:03:00]} 3... dxc4 {[%clk 0:02:56.9]}
4. a4 {[%clk 0:02:58.4]} 4... a6 {[%clk 0:02:56.7]} 5. Nc3 {[%clk 0:02:53.5]}
5... Nc6 {[%clk 0:02:56.6]} 6. e4 {[%clk 0:02:48.6]} 6... Bg4 {[%clk 0:02:55.9]}
7. Be3 {[%clk 0:02:46.3]} 7... Na5 {[%clk 0:02:51.4]} 8. h3 {[%clk 0:02:33.3]}
8... Bh5 {[%clk 0:02:50.8]} 9. Be2 {[%clk 0:02:29.8]} 9... e6 {[%clk 0:02:50.5]}
10. O-O {[%clk 0:02:29.5]} 10... Bb4 {[%clk 0:02:50.5]} 11. e5 {[%clk
0:02:27.1]} 11... Nd5 {[%clk 0:02:48]} 12. Na2 {[%clk 0:02:21.1]} 12... Be7
{[%clk 0:02:39.7]} 13. Rc1 {[%clk 0:02:10.6]} 13... b5 {[%clk 0:02:39.1]} 14.
Nd2 {[%clk 0:01:33.2]} 14... Bg6 {[%clk 0:02:29.7]} 15. b3 {[%clk 0:01:22.6]}
15... Nxe3 {[%clk 0:02:13.8]} 16. fxe3 {[%clk 0:01:21.3]} 16... c5 {[%clk
0:02:12.2]} 17. bxc4 {[%clk 0:00:45.6]} 17... cxd4 {[%clk 0:02:11.2]} 18. cxb5
{[%clk 0:00:42.2]} 18... dxe3 {[%clk 0:02:08]} 19. Nf3 {[%clk 0:00:29.8]} 19...
O-O {[%clk 0:02:01.1]} 20. Nb4 {[%clk 0:00:24.8]} 20... Bxb4 {[%clk 0:01:53.9]}
21. Nd4 {[%clk 0:00:07.1]} 21... Bd2 {[%clk 0:01:46.9]} 0-1

[Event "*** Titled Tuesday Blitz"]
[Site "Chess.com"]
[Date "2020.10.27"]
[Round "11"]
[White "Semen_Khanin"]
[Black "tlomigtlis"]
[Result "1-0"]
[WhiteElo "2777"]
[BlackElo "2608"]
[TimeControl "180+1"]
[EndTime "12:03:43 PDT"]
[Termination "Semen_Khanin won by resignation"]

1. c4 {[%clk 0:03:00.9]} 1... Nf6 {[%clk 0:02:59.5]} 2. Nc3 {[%clk 0:03:01]}
2... e5 {[%clk 0:02:59.3]} 3. g3 {[%clk 0:02:59.8]} 3... d5 {[%clk 0:02:58.8]}
4. cxd5 {[%clk 0:02:59.2]} 4... Nxd5 {[%clk 0:02:59.7]} 5. Bg2 {[%clk
0:02:59.7]} 5... Nb6 {[%clk 0:02:59.4]} 6. e3 {[%clk 0:02:56.7]} 6... Be7 {[%clk
0:02:56.3]} 7. Nge2 {[%clk 0:02:56.9]} 7... O-O {[%clk 0:02:55.9]} 8. O-O {[%clk
0:02:56.9]} 8... Nc6 {[%clk 0:02:52.1]} 9. f4 {[%clk 0:02:55.9]} 9... exf4
{[%clk 0:02:50]} 10. Nxf4 {[%clk 0:02:51.6]} 10... Qe8 {[%clk 0:02:48.4]} 11. d4
{[%clk 0:02:49.4]} 11... g6 {[%clk 0:02:38.3]} 12. e4 {[%clk 0:02:47.3]} 12...
Bf6 {[%clk 0:02:34.2]} 13. e5 {[%clk 0:02:47]} 13... Bg7 {[%clk 0:02:34.3]} 14.
Nfd5 {[%clk 0:02:39.2]} 14... Qd8 {[%clk 0:02:20]} 15. h4 {[%clk 0:02:02.1]}
15... Be6 {[%clk 0:02:06.6]} 16. Bg5 {[%clk 0:02:00.8]} 16... Qd7 {[%clk
0:01:55.4]} 17. Nxb6 {[%clk 0:02:00.4]} 17... axb6 {[%clk 0:01:53]} 18. d5
{[%clk 0:02:00.7]} 18... Bg4 {[%clk 0:01:49.6]} 19. dxc6 {[%clk 0:01:56]} 19...
Qe6 {[%clk 0:01:47.4]} 20. Qd5 {[%clk 0:01:36.9]} 20... bxc6 {[%clk 0:01:31.2]}
21. Qxe6 {[%clk 0:01:36.7]} 21... Bxe6 {[%clk 0:01:30.5]} 22. Bxc6 {[%clk
0:01:36.8]} 22... Ra5 {[%clk 0:01:30.1]} 23. Bf6 {[%clk 0:01:26.4]} 23... Bxf6
{[%clk 0:01:26.8]} 24. exf6 {[%clk 0:01:26]} 24... h5 {[%clk 0:01:24.9]} 25.
Rad1 {[%clk 0:01:21.7]} 25... Rc5 {[%clk 0:01:18.4]} 26. Bg2 {[%clk 0:01:20.3]}
26... Bc4 {[%clk 0:01:16.9]} 27. Rf4 {[%clk 0:01:19.6]} 27... Re8 {[%clk
0:01:16.2]} 28. Rfd4 {[%clk 0:01:15.1]} 28... Ba6 {[%clk 0:01:11]} 29. Rd8
{[%clk 0:01:09.1]} 29... Re5 {[%clk 0:01:10.7]} 30. Rxe8+ {[%clk 0:01:07.8]}
30... Rxe8 {[%clk 0:01:11.6]} 31. Ne4 {[%clk 0:01:07.2]} 31... Bb7 {[%clk
0:01:08.6]} 32. Ng5 {[%clk 0:01:06.8]} 32... Bxg2 {[%clk 0:01:09.5]} 33. Kxg2
{[%clk 0:01:07.1]} 1-0

[Event "*** Titled Tuesday Blitz"]
[Site "Chess.com"]
[Date "2020.10.27"]
[Round "11"]
[White "AnnaChessLook"]
[Black "RamyresCoelho"]
[Result "1-0"]
[WhiteElo "2238"]
[BlackElo "2076"]
[TimeControl "180+1"]
[EndTime "12:03:51 PDT"]
[Termination "AnnaChessLook won by checkmate"]

1. d4 {[%clk 0:03:00.9]} 1... c5 {[%clk 0:02:59.6]} 2. d5 {[%clk 0:02:58.1]}
2... e6 {[%clk 0:02:59.5]} 3. Nc3 {[%clk 0:02:56.9]} 3... d6 {[%clk 0:02:59.7]}
4. Nf3 {[%clk 0:02:55.7]} 4... Nf6 {[%clk 0:03:00]} 5. e4 {[%clk 0:02:53]} 5...
e5 {[%clk 0:02:59.8]} 6. g3 {[%clk 0:02:46.5]} 6... Be7 {[%clk 0:03:00.7]} 7.
Bg2 {[%clk 0:02:46.6]} 7... O-O {[%clk 0:03:01.3]} 8. O-O {[%clk 0:02:47.2]}
8... a6 {[%clk 0:03:01.6]} 9. a4 {[%clk 0:02:47.2]} 9... Ne8 {[%clk 0:03:01.4]}
10. Nd2 {[%clk 0:02:47.4]} 10... f5 {[%clk 0:03:01.9]} 11. Nc4 {[%clk
0:02:37.7]} 11... f4 {[%clk 0:03:00.1]} 12. f3 {[%clk 0:02:36.3]} 12... g5
{[%clk 0:02:59.3]} 13. g4 {[%clk 0:02:34.7]} 13... Ng7 {[%clk 0:02:55.2]} 14.
Rb1 {[%clk 0:02:24.6]} 14... h5 {[%clk 0:02:52.5]} 15. h3 {[%clk 0:02:24.4]}
15... hxg4 {[%clk 0:02:52.4]} 16. hxg4 {[%clk 0:02:25.3]} 16... Kf7 {[%clk
0:02:52.6]} 17. b4 {[%clk 0:02:21.6]} 17... cxb4 {[%clk 0:02:52.6]} 18. Rxb4
{[%clk 0:02:21]} 18... Rh8 {[%clk 0:02:53.5]} 19. Nb6 {[%clk 0:02:14.1]} 19...
a5 {[%clk 0:02:40.5]} 20. Rb3 {[%clk 0:01:59.7]} 20... Ra6 {[%clk 0:02:37.5]}
21. Nxc8 {[%clk 0:01:38.9]} 21... Qxc8 {[%clk 0:02:36.9]} 22. Ba3 {[%clk
0:01:39.5]} 22... Nd7 {[%clk 0:02:29.2]} 23. Nb5 {[%clk 0:01:37.6]} 23... Nc5
{[%clk 0:02:26.9]} 24. Rc3 {[%clk 0:01:37.6]} 24... Qg8 {[%clk 0:02:21.8]} 25.
Bxc5 {[%clk 0:01:34.8]} 25... dxc5 {[%clk 0:02:21.8]} 26. d6 {[%clk 0:01:34]}
26... Bf6 {[%clk 0:02:18.2]} 27. Qd5+ {[%clk 0:01:32.4]} 27... Ne6 {[%clk
0:02:18.1]} 28. Qxb7+ {[%clk 0:01:31.5]} 28... Kg6 {[%clk 0:02:18.2]} 29. Qxa6
{[%clk 0:01:26.3]} 29... Qh7 {[%clk 0:02:18]} 30. d7 {[%clk 0:01:20.5]} 30...
Qh2+ {[%clk 0:02:15]} 31. Kf2 {[%clk 0:01:20.6]} 31... Qg3+ {[%clk 0:02:14.6]}
32. Ke2 {[%clk 0:01:20.6]} 32... Qxg2+ {[%clk 0:02:10.6]} 33. Rf2 {[%clk
0:01:20.5]} 33... Qg3 {[%clk 0:02:08.1]} 34. Qxe6 {[%clk 0:01:16.3]} 34... Rh2
{[%clk 0:02:03.8]} 35. Qg8+ {[%clk 0:01:05.6]} 35... Bg7 {[%clk 0:02:03.3]} 36.
Qe8+ {[%clk 0:00:53.1]} 36... Kh7 {[%clk 0:01:59.9]} 37. Rxh2+ {[%clk 0:00:53]}
37... Qxh2+ {[%clk 0:01:59.5]} 38. Kd3 {[%clk 0:00:53.9]} 38... Qf2 {[%clk
0:01:44.6]} 39. Qh5+ {[%clk 0:00:50.8]} 39... Kg8 {[%clk 0:01:44.8]} 40. d8=Q+
{[%clk 0:00:50.4]} 40... Bf8 {[%clk 0:01:45.3]} 41. Qg6+ {[%clk 0:00:50.3]}
41... Kh8 {[%clk 0:01:45.1]} 42. Qxf8# {[%clk 0:00:50.6]} 1-0

[Event "*** Titled Tuesday Blitz"]
[Site "Chess.com"]
[Date "2020.10.27"]
[Round "11"]
[White "Omk124"]
[Black "BJthechessgod"]
[Result "1-0"]
[WhiteElo "2403"]
[BlackElo "2292"]
[TimeControl "180+1"]
[EndTime "12:03:55 PDT"]
[Termination "Omk124 won by resignation"]

1. e4 {[%clk 0:03:00.9]} 1... c5 {[%clk 0:03:00.2]} 2. Nf3 {[%clk 0:03:00.3]}
2... Nc6 {[%clk 0:02:58.5]} 3. d4 {[%clk 0:03:00.3]} 3... cxd4 {[%clk
0:02:59.4]} 4. Nxd4 {[%clk 0:03:01.2]} 4... e6 {[%clk 0:02:59.6]} 5. g3 {[%clk
0:03:00.5]} 5... Nf6 {[%clk 0:02:58.9]} 6. Bg2 {[%clk 0:03:00.6]} 6... Be7
{[%clk 0:02:55.7]} 7. O-O {[%clk 0:02:58.8]} 7... O-O {[%clk 0:02:55.8]} 8. c4
{[%clk 0:02:56.5]} 8... d5 {[%clk 0:02:48.7]} 9. cxd5 {[%clk 0:02:51.9]} 9...
exd5 {[%clk 0:02:46.5]} 10. Nxc6 {[%clk 0:02:43.3]} 10... bxc6 {[%clk
0:02:45.3]} 11. exd5 {[%clk 0:02:43.1]} 11... cxd5 {[%clk 0:02:45.6]} 12. Nc3
{[%clk 0:02:43.3]} 12... Bb7 {[%clk 0:02:46.2]} 13. Bg5 {[%clk 0:02:42.6]} 13...
Ne4 {[%clk 0:02:36.5]} 14. Bxe7 {[%clk 0:02:38.9]} 14... Qxe7 {[%clk 0:02:14.5]}
15. Nxd5 {[%clk 0:02:37.2]} 15... Qe5 {[%clk 0:01:47.2]} 16. Ne3 {[%clk
0:02:31.9]} 16... Rab8 {[%clk 0:01:41.5]} 17. Nc4 {[%clk 0:02:30.7]} 17... Qc5
{[%clk 0:01:39.8]} 18. b3 {[%clk 0:02:29.8]} 18... Rfd8 {[%clk 0:01:37.5]} 19.
Qc2 {[%clk 0:02:28.5]} 19... Rd2 {[%clk 0:01:26.4]} 20. Qc1 {[%clk 0:02:21.9]}
20... Rxf2 {[%clk 0:01:14.5]} 21. Qe3 {[%clk 0:02:02.7]} 21... Rxg2+ {[%clk
0:00:40.9]} 22. Kxg2 {[%clk 0:01:55.8]} 22... Nd2+ {[%clk 0:00:40.1]} 23. Kg1
{[%clk 0:01:51.6]} 23... Qxe3+ {[%clk 0:00:39.6]} 24. Nxe3 {[%clk 0:01:51.2]}
24... Nxf1 {[%clk 0:00:40.2]} 25. Kxf1 {[%clk 0:01:51.1]} 25... Re8 {[%clk
0:00:39.1]} 26. Kf2 {[%clk 0:01:51.1]} 26... Rc8 {[%clk 0:00:35.3]} 27. Rd1
{[%clk 0:01:51.2]} 27... g6 {[%clk 0:00:34.7]} 28. Rd7 {[%clk 0:01:51.3]} 28...
Rb8 {[%clk 0:00:32.8]} 29. Nc4 {[%clk 0:01:49.5]} 29... a5 {[%clk 0:00:33.4]}
30. Nxa5 {[%clk 0:01:49.3]} 30... Ba6 {[%clk 0:00:33.5]} 31. Nc6 {[%clk
0:01:48.3]} 31... Rc8 {[%clk 0:00:33.3]} 32. Ne7+ {[%clk 0:01:48.4]} 32... Kf8
{[%clk 0:00:32]} 33. Nxc8 {[%clk 0:01:49.3]} 33... Ke8 {[%clk 0:00:32.9]} 34.
Rc7 {[%clk 0:01:48.2]} 34... Kd8 {[%clk 0:00:32.9]} 35. Rc6 {[%clk 0:01:47.2]}
35... Bxc8 {[%clk 0:00:33.8]} 36. Rxc8+ {[%clk 0:01:45.2]} 36... Kxc8 {[%clk
0:00:33.8]} 37. a4 {[%clk 0:01:46]} 37... Kb7 {[%clk 0:00:34.7]} 38. a5 {[%clk
0:01:46.4]} 38... Ka6 {[%clk 0:00:35]} 39. b4 {[%clk 0:01:47.1]} 39... Kb5
{[%clk 0:00:35.9]} 40. Ke3 {[%clk 0:01:47.6]} 40... f5 {[%clk 0:00:36.2]} 41.
Kf4 {[%clk 0:01:48]} 41... h6 {[%clk 0:00:36.9]} 42. h4 {[%clk 0:01:48]} 42...
Kxb4 {[%clk 0:00:35.9]} 43. a6 {[%clk 0:01:47.9]} 43... Ka5 {[%clk 0:00:36.8]}
44. a7 {[%clk 0:01:48.5]} 1-0

[Event "*** Titled Tuesday Blitz"]
[Site "Chess.com"]
[Date "2020.10.27"]
[Round "11"]
[White "venus02"]
[Black "svilson23"]
[Result "1-0"]
[WhiteElo "2515"]
[BlackElo "2388"]
[TimeControl "180+1"]
[EndTime "12:04:08 PDT"]
[Termination "venus02 won by checkmate"]

1. d4 {[%clk 0:02:52.3]} 1... d5 {[%clk 0:02:59.9]} 2. c4 {[%clk 0:02:51.9]}
2... e6 {[%clk 0:03:00.6]} 3. Nc3 {[%clk 0:02:51.2]} 3... f5 {[%clk 0:03:00.8]}
4. e3 {[%clk 0:02:40.7]} 4... c6 {[%clk 0:03:00.6]} 5. g4 {[%clk 0:02:39.8]}
5... fxg4 {[%clk 0:02:51.9]} 6. Qxg4 {[%clk 0:02:39.5]} 6... Nf6 {[%clk
0:02:51.2]} 7. Qg2 {[%clk 0:02:40]} 7... Qc7 {[%clk 0:02:24.2]} 8. f4 {[%clk
0:02:27.6]} 8... Na6 {[%clk 0:02:22.1]} 9. Nf3 {[%clk 0:02:26.8]} 9... Bd7
{[%clk 0:02:15.9]} 10. Ne5 {[%clk 0:02:26.3]} 10... Rg8 {[%clk 0:02:04.5]} 11.
c5 {[%clk 0:02:24.9]} 11... O-O-O {[%clk 0:01:47.1]} 12. Rb1 {[%clk 0:02:21.6]}
12... Nb8 {[%clk 0:01:44.8]} 13. b4 {[%clk 0:02:20.2]} 13... Be8 {[%clk
0:01:23.1]} 14. a4 {[%clk 0:02:19.5]} 14... h6 {[%clk 0:01:20.4]} 15. Bd2 {[%clk
0:02:17.2]} 15... g5 {[%clk 0:01:20.6]} 16. Qf2 {[%clk 0:02:06.8]} 16... gxf4
{[%clk 0:01:18.5]} 17. exf4 {[%clk 0:02:07]} 17... Ng4 {[%clk 0:01:16.2]} 18.
Nxg4 {[%clk 0:02:06.3]} 18... Rxg4 {[%clk 0:01:15.7]} 19. Bh3 {[%clk 0:02:04.4]}
19... Rg6 {[%clk 0:01:14.5]} 20. f5 {[%clk 0:02:03.9]} 20... Rf6 {[%clk
0:01:08.1]} 21. Qh4 {[%clk 0:02:03.6]} 21... Be7 {[%clk 0:01:06.5]} 22. Bf4
{[%clk 0:01:59.7]} 22... Qd7 {[%clk 0:01:05.1]} 23. Qg3 {[%clk 0:01:58.8]} 23...
Na6 {[%clk 0:01:01.5]} 24. b5 {[%clk 0:01:58.6]} 24... Nxc5 {[%clk 0:00:59.7]}
25. bxc6 {[%clk 0:01:54.4]} 25... Qxc6 {[%clk 0:00:56.2]} 26. Nb5 {[%clk
0:01:53.5]} 26... Qa6 {[%clk 0:00:42.4]} 27. Bb8 {[%clk 0:01:52.7]} 27... Qa5+
{[%clk 0:00:38]} 28. Ke2 {[%clk 0:01:42]} 28... Ne4 {[%clk 0:00:35.2]} 29. Rhc1+
{[%clk 0:01:38.8]} 29... Bc6 {[%clk 0:00:34.1]} 30. Nxa7+ {[%clk 0:01:23.6]}
30... Qxa7 {[%clk 0:00:26.2]} 31. Qc7# {[%clk 0:01:21.8]} 1-0